bitfinex/quotes_SOLUSD_20250823
["timestamp","ask_amount","ask_price","bid_price","bid_amount"]
[1755930569939,49.88487088,206.15,206.14,3.34118755]
[1755930570346,49.88487088,206.15,206.13,0.03]
[1755930570523,10.46487088,206.14,206.13,0.03]
[1755930571341,24.06046489,206.14,206.13,0.03]
[1755930571508,24.34478803,206.14,206.13,0.03]
[1755930571713,24.06046489,206.14,206.13,0.03]
[1755930571920,63.48046489,206.14,206.13,0.03]
[1755930572629,24.06046489,206.14,206.13,0.03]
[1755930572818,63.48046489,206.14,206.13,0.03]
[1755930573208,24.06046489,206.14,206.13,0.03]
[1755930573416,39.4,206.14,206.13,0.03]
[1755930573621,63.46046489,206.14,206.13,0.03]
[1755930574629,24.06046489,206.14,206.13,0.03]
[1755930574812,0.58,206.16,206.13,0.03]
[1755930575017,9.88487088,206.14,206.13,0.03]
[1755930577040,9.88487088,206.14,206.07,9.88487088]
[1755930577343,39.4,206.15,206.08,3.19535314]
[1755930577344,9.88487088,206.12,206.08,3.19535314]
[1755930577521,9.88487088,206.12,206.05,9.88487088]
[1755930577522,49.28487088,206.11,206.05,9.88487088]
[1755930577721,9.88487088,206.1,206.06,3.19576858]
[1755930577942,39.4,206.09,206.07,3.19576858]
[1755930578148,39.4,206.09,206.04,9.98487088]
[1755930578349,39.4,206.09,206.05,3.19520065]
[1755930578648,39.4,206.09,206.06,3.19520302]
[1755930578862,39.4,206.08,206.07,3.19520302]
[1755930580227,40.11,206.08,206.07,3.19520302]
[1755930580431,9.88487088,206.09,206.04,0.1]
[1755930580752,39.38,206.08,206.06,9.88487088]
[1755930580922,39.38,206.08,206.06,0.68]
[1755930581323,39.38,206.08,206.05,9.88487088]
[1755930581566,39.38,206.08,206.07,0.68]
[1755930582043,39.38,206.08,206.05,10.56487088]
[1755930582251,39.38,206.08,206.06,3.87391096]
[1755930582458,39.38,206.08,206.06,0.68]
[1755930582819,39.38,206.08,206.05,9.88487088]
[1755930583044,34.96,206.1,206.07,10.56487088]
[1755930583320,34.96,206.1,206.04,0.1]
[1755930583321,34.96,206.1,206.08,3.87256808]
[1755930583544,34.96,206.1,206.09,3.87256808]
[1755930583731,74.34,206.1,206.09,3.87256808]
[1755930584132,74.34,206.1,206.09,3.19256808]
[1755930584426,75.05,206.1,206.09,3.19256808]
[1755930584652,75.05,206.1,206.05,0.68]
[1755930584653,75.05,206.1,206.07,9.88487088]
[1755930585321,75.05,206.1,206.08,3.19266324]
[1755930585520,75.05,206.1,206.07,9.88487088]
[1755930585934,35.67,206.1,206.07,9.88487088]
[1755930586155,39.38,206.09,206.07,9.88487088]
[1755930586364,39.38,206.09,206.06,0.68]
[1755930586539,39.38,206.09,206.08,9.88487088]
[1755930587239,39.38,206.09,206.08,13.07726799]
[1755930587652,39.38,206.09,206.08,9.88487088]
[1755930587856,39.38,206.09,206.08,13.07696797]
[1755930589165,39.36,206.09,206.08,13.07696797]
[1755930589339,34.96,206.1,206.08,13.07696797]
[1755930589534,34.96,206.1,206.09,13.07696797]
[1755930589762,74.32,206.1,206.09,13.75696797]
[1755930590658,74.32,206.1,206.09,3.19209709]
[1755930590958,74.32,206.1,206.09,13.07696797]
[1755930591165,74.32,206.1,206.09,13.75696797]
[1755930591660,34.96,206.1,206.09,13.75696797]
[1755930591847,74.3,206.1,206.09,13.75696797]
[1755930592163,74.3,206.1,206.09,3.19209709]
[1755930592586,75.01,206.1,206.09,3.19209709]
[1755930593063,74.3,206.1,206.09,3.19209709]
[1755930594957,34.96,206.1,206.09,13.75696797]
[1755930595289,74.3,206.1,206.09,13.75696797]
[1755930595849,34.96,206.1,206.09,13.75696797]
[1755930596066,74.3,206.1,206.09,13.75696797]
[1755930596955,74.3,206.1,206.09,13.9391101]
[1755930597394,74.3,206.1,206.09,39.9391101]
[1755930597996,34.96,206.1,206.09,39.9391101]
[1755930598354,74.28,206.1,206.09,39.9391101]
[1755930599285,34.96,206.1,206.09,14.22343324]
[1755930599579,74.28,206.1,206.09,14.22343324]
[1755930600169,34.96,206.1,206.09,14.22343324]
[1755930600368,74.28,206.1,206.09,14.22343324]
[1755930601394,74.28,206.1,206.09,13.2591101]
[1755930601605,34.96,206.1,206.09,13.9291101]
[1755930601901,74.28,206.1,206.09,13.2591101]
[1755930602480,34.96,206.1,206.09,27.80902725]
[1755930602781,74.26,206.1,206.09,27.80902725]
[1755930602952,0.06,206.15,206.13,0.28432314]
[1755930603177,0.06,206.15,206.14,13.25803152]
[1755930603380,39.36,206.15,206.14,13.25803152]
[1755930603605,0.06,206.15,206.14,3.37316064]
[1755930603784,0.06,206.15,206.14,14.21235466]
[1755930604309,0.06,206.15,206.14,27.80794867]
[1755930604310,39.36,206.15,206.14,27.80794867]
[1755930604888,0.06,206.15,206.14,27.80794867]
[1755930605094,39.36,206.15,206.14,27.80405003]
[1755930605291,0.06,206.15,206.14,27.80405003]
[1755930605490,0.06,206.16,206.15,13.87991715]
[1755930605684,0.06,206.18,206.17,39.87991715]
[1755930605898,0.06,206.23,206.2,39.87991715]
[1755930606100,0.06,206.23,206.22,33.64965891]
[1755930606412,0.06,206.28,206.27,23.76478803]
[1755930606597,39.36,206.28,206.27,27.13405003]
[1755930606779,0.06,206.28,206.27,27.80405003]
[1755930606978,39.34,206.28,206.27,30.32358514]
[1755930607180,39.34,206.28,206.27,40.20845602]
[1755930607479,39.34,206.28,206.27,39.53845602]
[1755930607888,39.34,206.28,206.27,39.25413288]
[1755930608291,39.34,206.28,206.27,39.26695425]
[1755930608874,39.34,206.28,206.27,40.22127739]
[1755930609484,0.06,206.28,206.27,40.22127739]
[1755930609682,39.34,206.28,206.27,30.33640651]
[1755930610004,39.34,206.28,206.27,40.22127739]
[1755930610680,39.34,206.28,206.27,36.16919402]
[1755930610885,39.34,206.28,206.27,39.64276743]
[1755930611391,0.06,206.28,206.27,39.64276743]
[1755930611595,39.32,206.28,206.27,39.64276743]
[1755930611899,0.06,206.28,206.27,39.64276743]
[1755930612079,39.32,206.28,206.27,39.64276743]
[1755930612493,39.32,206.28,206.27,30.42789655]
[1755930612686,39.32,206.28,206.27,40.31276743]
[1755930613081,39.32,206.28,206.27,53.90836144]
[1755930613306,0.06,206.28,206.27,53.90836144]
[1755930613507,39.32,206.28,206.27,58.58122539]
[1755930614006,39.32,206.28,206.27,55.10765198]
[1755930614211,39.32,206.28,206.27,58.57277904]
[1755930614506,39.3,206.28,206.27,58.57277904]
[1755930614687,39.3,206.31,206.28,13.87991715]
[1755930614880,39.3,206.31,206.28,18.01306151]
[1755930615080,39.3,206.31,206.28,27.89793239]
[1755930615797,39.3,206.31,206.28,3.7474675]
[1755930615995,39.99,206.31,206.28,29.7474675]
[1755930616192,39.24,206.3,206.28,53.89793239]
[1755930616425,39.24,206.3,206.28,68.44232839]
[1755930617195,0.06,206.31,206.28,68.4380665]
[1755930617397,41.24,206.29,206.28,68.4380665]
[1755930617696,0.06,206.31,206.3,0.28432314]
[1755930618022,0.06,206.31,206.3,53.2236705]
[1755930618815,0.06,206.31,206.3,53.8936705]
[1755930619937,0.06,206.31,206.3,53.2236705]
[1755930620134,0.06,206.31,206.3,3.45888247]
[1755930620306,0.06,206.31,206.3,29.45888247]
[1755930620307,0.75,206.31,206.3,29.45888247]
[1755930620502,0.75,206.31,206.29,9.88487088]
[1755930620813,0.69,206.3,206.27,9.88487088]
[1755930621021,0.69,206.3,206.29,9.88487088]
[1755930621330,0.06,206.31,206.29,9.88487088]
[1755930621494,0.06,206.31,206.28,0.14216157]
[1755930621836,0.06,206.31,206.3,9.88487088]
[1755930621997,39.28,206.31,206.3,9.88487088]
[1755930622801,0.06,206.31,206.3,10.16919402]
[1755930623010,39.28,206.31,206.3,13.62232204]
[1755930623338,39.26,206.31,206.3,13.62248476]
[1755930623900,39.26,206.31,206.3,13.62206022]
[1755930625396,39.26,206.31,206.3,14.29206022]
[1755930625714,0.06,206.31,206.3,27.88765423]
[1755930627403,0.06,206.31,206.3,27.21765423]
[1755930627803,0.06,206.31,206.3,27.89765423]
[1755930628505,0.06,206.31,206.3,18.01278335]
[1755930628722,0.77,206.31,206.29,9.88487088]
[1755930628931,0.71,206.3,206.29,9.88487088]
[1755930629226,0.71,206.3,206.29,13.33884655]
[1755930629399,0.71,206.3,206.29,13.33954158]
[1755930629805,39.18,206.3,206.29,13.33954158]
[1755930630004,39.18,206.3,206.29,13.33964246]
[1755930630628,39.89,206.3,206.29,13.33964246]
[1755930631429,0.71,206.3,206.29,13.33964246]
[1755930631728,39.89,206.3,206.28,0.03]
[1755930631916,0.71,206.3,206.28,0.03]
[1755930632115,39.18,206.29,206.28,9.91487088]
[1755930632619,39.18,206.29,206.28,13.37384218]
[1755930633406,39.18,206.29,206.28,13.37467221]
[1755930633606,0.06,206.31,206.3,26.0]
[1755930633820,39.24,206.31,206.3,39.34467221]
[1755930634215,0.77,206.32,206.3,39.34467221]
[1755930634444,39.89,206.31,206.3,35.88487088]
[1755930634636,39.18,206.31,206.3,13.34654154]
[1755930634828,0.06,206.32,206.3,3.46167066]
[1755930635012,0.77,206.32,206.3,9.88487088]
[1755930635213,39.18,206.31,206.3,9.88487088]
[1755930635409,39.18,206.31,206.3,13.3481225]
[1755930635733,0.77,206.32,206.3,13.3481225]
[1755930635911,39.18,206.31,206.3,9.88487088]
[1755930636113,39.18,206.31,206.3,13.34812368]
[1755930638119,39.16,206.31,206.3,13.34812368]
[1755930638634,0.06,206.32,206.3,13.34812368]
[1755930638825,0.06,206.32,206.31,13.34812368]
[1755930639028,39.22,206.32,206.31,13.34812368]
[1755930640534,39.93,206.32,206.31,3.4632528]
[1755930640846,39.22,206.32,206.31,39.34812368]
[1755930641626,39.22,206.32,206.31,35.88487088]
[1755930641828,39.22,206.32,206.31,39.3840296]
[1755930642151,39.22,206.32,206.31,40.0640296]
[1755930642454,39.22,206.32,206.31,39.38615064]
[1755930642746,0.06,206.32,206.31,39.38646303]
[1755930643137,39.2,206.32,206.31,39.38646303]
[1755930645540,0.06,206.32,206.31,39.38646303]
[1755930645744,39.2,206.32,206.31,39.38646303]
[1755930647358,39.2,206.32,206.31,39.67078617]
[1755930647552,0.06,206.32,206.31,27.94638018]
[1755930650139,0.06,206.32,206.31,18.0615093]
[1755930650343,0.06,206.32,206.31,27.94638018]
[1755930650545,0.76,206.32,206.31,3.50159215]
[1755930650760,0.76,206.32,206.3,9.88487088]
[1755930650956,0.76,206.32,206.31,13.11241997]
[1755930651151,0.06,206.32,206.31,13.11241997]
[1755930651351,0.06,206.32,206.31,13.11227093]
[1755930651762,0.76,206.32,206.31,9.88487088]
[1755930652749,0.06,206.32,206.31,9.88487088]
[1755930653066,39.18,206.32,206.31,9.88487088]
[1755930653266,0.06,206.32,206.31,10.16919402]
[1755930653444,39.18,206.32,206.31,10.84919402]
[1755930653639,0.06,206.32,206.31,10.84919402]
[1755930653853,0.06,206.32,206.31,26.96432314]
[1755930654069,0.06,206.32,206.31,36.84919402]
[1755930654744,39.18,206.32,206.31,40.48218245]
[1755930654946,39.18,206.32,206.31,3.91731157]
[1755930655163,39.18,206.32,206.31,13.80218245]
[1755930656756,39.89,206.32,206.31,3.63298843]
[1755930656978,39.18,206.32,206.31,3.63298843]
[1755930658172,39.16,206.32,206.31,3.63298843]
[1755930658670,39.16,206.32,206.31,13.51785931]
[1755930659176,39.16,206.32,206.31,3.63298843]
[1755930659375,39.16,206.32,206.31,13.51785931]
[1755930659981,39.16,206.32,206.31,13.42168801]
[1755930660656,0.06,206.32,206.31,10.86919402]
[1755930660857,0.06,206.32,206.31,3.53646574]
[1755930661053,0.06,206.32,206.31,13.42133662]
[1755930661969,0.06,206.32,206.31,3.56646574]
[1755930662148,0.77,206.32,206.31,3.56646574]
[1755930662583,10.65487088,206.32,206.31,3.56646574]
[1755930663267,14.36559401,206.32,206.31,0.03]
[1755930663450,24.25046489,206.32,206.31,0.03]
[1755930663783,0.28432314,206.3,206.29,0.03]
[1755930663968,13.87991715,206.29,206.28,0.03]
[1755930664162,23.76478803,206.29,206.28,0.03]
[1755930664353,24.47478803,206.29,206.28,0.03]
[1755930665386,14.30559401,206.29,206.28,0.03]
[1755930665553,63.27046489,206.29,206.28,0.03]
[1755930666873,26.13112889,206.29,206.28,0.03]
[1755930667083,65.21112889,206.29,206.28,0.03]
[1755930667462,39.79,206.29,206.28,0.03]
[1755930667855,39.08,206.29,206.28,0.03]
[1755930669393,39.79,206.29,206.28,0.03]
[1755930669767,0.71,206.29,206.28,0.03]
[1755930669989,39.79,206.29,206.28,0.03]
[1755930671291,49.67487088,206.29,206.28,0.03]
[1755930672481,39.79,206.29,206.28,0.03]
[1755930675270,39.08,206.29,206.28,0.03]
[1755930675476,39.79,206.29,206.28,0.03]
[1755930676189,39.77,206.29,206.28,0.03]
[1755930676876,0.06,206.33,206.32,39.87991715]
[1755930677091,0.06,206.33,206.32,36.86919402]
[1755930680000,0.06,206.33,206.32,50.46478803]
[1755930680312,0.06,206.33,206.32,65.00566003]
[1755930681272,0.06,206.33,206.32,71.28691347]
[1755930682578,0.06,206.33,206.32,65.00566003]
[1755930683378,0.06,206.33,206.32,68.61953488]
[1755930683797,0.06,206.33,206.32,74.90078832]
[1755930684179,0.06,206.33,206.32,68.61953488]
[1755930684386,0.06,206.33,206.32,54.07866288]
[1755930684586,0.06,206.33,206.32,56.01753988]
[1755930685206,0.06,206.33,206.32,46.132669]
[1755930685498,0.06,206.33,206.32,56.01753988]
[1755930686585,0.06,206.33,206.32,56.01649113]
[1755930686792,0.06,206.33,206.32,54.07761413]
[1755930687007,0.06,206.33,206.32,56.01649113]
[1755930687176,0.06,206.33,206.32,56.01654631]
[1755930687585,0.06,206.33,206.32,56.01615516]
[1755930688373,0.06,206.33,206.32,62.20366416]
[1755930688579,0.06,206.33,206.32,56.01615516]
[1755930689102,0.06,206.33,206.32,62.20366416]
[1755930690891,0.06,206.34,206.33,13.87991715]
[1755930691094,0.06,206.34,206.33,34.27478716]
[1755930691485,0.06,206.36,206.35,39.87991715]
[1755930691785,0.2,206.37,206.36,13.87991715]
[1755930692090,0.2,206.37,206.36,28.08727816]
[1755930692698,0.2,206.37,206.36,24.47478803]
[1755930692901,0.2,206.37,206.36,28.0836555]
[1755930693415,0.2,206.37,206.36,18.19878462]
[1755930693583,0.2,206.37,206.36,28.0836555]
[1755930693918,0.9,206.37,206.36,3.60886747]
[1755930694123,0.9,206.37,206.36,13.49373835]
[1755930694290,0.2,206.37,206.36,13.77806149]
[1755930694493,0.2,206.37,206.36,13.49373835]
[1755930694896,0.2,206.37,206.36,14.48806149]
[1755930695118,0.2,206.37,206.36,29.89319061]
[1755930695287,0.2,206.37,206.36,39.77806149]
[1755930696013,0.9,206.37,206.36,39.49284908]
[1755930696400,0.9,206.37,206.36,39.63508976]
[1755930696711,0.9,206.37,206.36,39.49292819]
[1755930698914,0.9,206.37,206.36,39.49242762]
[1755930700910,0.2,206.37,206.36,39.49242762]
[1755930701322,39.2,206.37,206.36,3.60755674]
[1755930701522,39.9,206.37,206.36,13.49242762]
[1755930701819,39.9,206.37,206.36,3.60755674]
[1755930703020,39.9,206.37,206.29,19.25196684]
[1755930703021,39.9,206.37,206.32,9.88487088]
[1755930703319,0.7,206.36,206.33,3.60757326]
[1755930703512,0.7,206.36,206.34,3.60757326]
[1755930703696,38.98,206.35,206.33,26.0]
[1755930703896,38.98,206.35,206.34,3.60757569]
[1755930704490,39.68,206.35,206.34,3.60757569]
[1755930704998,39.68,206.35,206.34,3.60761593]
[1755930711012,39.68,206.35,206.34,3.61228979]
[1755930711920,68.00660009,206.35,206.34,0.03]
[1755930712126,68.29092323,206.35,206.29,0.03]
[1755930712309,23.48046489,206.3,206.29,0.03]
[1755930712509,62.46046489,206.3,206.29,0.03]
[1755930712703,13.59559401,206.29,206.16,0.71]
[1755930713029,62.46046489,206.3,206.16,10.59487088]
[1755930713030,23.48046489,206.27,206.16,10.59487088]
[1755930713524,24.00046489,206.27,206.21,26.0]
[1755930713728,24.00046489,206.27,206.2,0.71]
[1755930714043,24.00046489,206.27,206.21,26.0]
[1755930714044,62.98046489,206.27,206.21,26.0]
[1755930714209,0.52,206.27,206.21,35.88487088]
[1755930714410,49.36487088,206.27,206.21,26.0]
[1755930715313,49.36487088,206.27,206.2,10.59487088]
[1755930716332,38.98,206.27,206.21,10.59487088]
[1755930717004,9.88487088,206.28,206.21,9.88487088]
[1755930717200,38.96,206.27,206.24,9.91487088]
[1755930717428,38.96,206.27,206.24,0.03]
[1755930719709,9.88487088,206.3,206.24,0.03]
[1755930719910,38.98,206.29,206.24,0.03]
[1755930720631,20.56974188,206.36,206.28,9.88487088]
[1755930720802,48.86487088,206.35,206.28,10.54487088]
[1755930721429,9.88487088,206.34,206.28,0.66]
[1755930722237,38.98,206.35,206.28,10.54487088]
[1755930722548,38.98,206.35,206.29,9.88487088]
[1755930722721,48.86487088,206.35,206.29,9.88487088]
[1755930722910,48.86487088,206.35,206.28,10.54487088]
[1755930723837,48.86487088,206.35,206.29,3.61162338]
[1755930724011,48.86487088,206.35,206.3,3.61162338]
[1755930724210,49.38487088,206.35,206.31,3.61162338]
[1755930724408,49.38487088,206.35,206.28,10.54487088]
[1755930724624,49.38487088,206.35,206.29,13.49637886]
[1755930724822,49.38487088,206.35,206.3,3.61150798]
[1755930725040,0.06,206.36,206.34,26.0]
[1755930725225,38.96,206.35,206.34,9.88487088]
[1755930725427,38.96,206.35,206.34,14.15575992]
[1755930726528,0.06,206.36,206.34,14.15575992]
[1755930726726,0.06,206.36,206.35,13.49598332]
[1755930726928,39.02,206.36,206.35,14.15598332]
[1755930727109,39.02,206.36,206.35,3.61111244]
[1755930727309,39.54,206.36,206.31,35.88487088]
[1755930727611,39.02,206.36,206.32,3.6119652]
[1755930727814,39.02,206.36,206.33,3.6119652]
[1755930728015,39.02,206.36,206.31,36.54487088]
[1755930728219,39.02,206.36,206.32,3.61159162]
[1755930728425,39.02,206.36,206.33,3.61159162]
[1755930728620,39.02,206.36,206.31,36.54487088]
[1755930728837,39.02,206.36,206.32,3.61199011]
[1755930729139,39.02,206.36,206.33,3.61199011]
[1755930729341,39.02,206.36,206.32,9.88487088]
[1755930729523,39.02,206.36,206.33,3.61225689]
[1755930729722,39.54,206.36,206.32,9.88487088]
[1755930730047,10.40487088,206.35,206.27,0.03]
[1755930730215,10.40487088,206.35,206.29,26.0]
[1755930730535,10.40487088,206.35,206.3,3.61290912]
[1755930730713,10.40487088,206.34,206.27,9.91487088]
[1755930730909,10.40487088,206.34,206.28,3.61195988]
[1755930731106,10.40487088,206.34,206.29,3.61195988]
[1755930731335,10.40487088,206.34,206.27,9.91487088]
[1755930731521,10.40487088,206.34,206.28,3.6118289]
[1755930731722,9.88487088,206.33,206.29,3.6118289]
[1755930731921,38.94,206.32,206.27,9.91487088]
[1755930732140,38.94,206.32,206.28,3.6120207]
[1755930732330,39.46,206.32,206.27,9.91487088]
[1755930732641,39.46,206.32,206.28,3.612272]
[1755930732845,0.52,206.31,206.27,0.03]
[1755930733025,0.52,206.3,206.27,0.03]
[1755930733526,0.52,206.29,206.27,0.03]
[1755930733729,38.94,206.28,206.27,0.03]
[1755930734513,49.34487088,206.28,206.27,0.03]
[1755930735229,62.94046489,206.28,206.27,0.03]
[1755930738446,1.220664,206.3,206.28,13.59559401]
[1755930738648,0.2,206.37,206.32,26.0]
[1755930738826,38.92,206.35,206.34,9.88487088]
[1755930739023,0.2,206.37,206.34,13.49686732]
[1755930739237,0.2,206.37,206.35,14.15434128]
[1755930739437,38.98,206.36,206.35,9.88487088]
[1755930739642,38.98,206.36,206.35,10.54487088]
[1755930740354,38.98,206.36,206.35,16.32638649]
[1755930740717,38.98,206.36,206.35,19.93823152]
[1755930742035,0.06,206.36,206.35,19.93823152]
[1755930742238,38.98,206.36,206.35,19.93823152]
[1755930743152,38.98,206.36,206.35,3.61184503]
[1755930743456,38.98,206.36,206.35,19.27823152]
[1755930745157,0.06,206.36,206.35,19.27823152]
[1755930745351,38.98,206.36,206.35,19.27823152]
[1755930747255,0.06,206.36,206.35,19.27823152]
[1755930747452,38.96,206.36,206.35,19.27823152]
[1755930749661,38.96,206.36,206.35,19.28099063]
[1755930749869,38.96,206.36,206.35,20.00099063]
[1755930750045,38.96,206.36,206.35,20.00092625]
[1755930752752,38.96,206.36,206.35,19.28092625]
[1755930754955,38.96,206.36,206.35,3.61453976]
[1755930755153,38.96,206.36,206.35,19.28092625]
[1755930756768,0.06,206.36,206.35,19.28092625]
[1755930757150,38.94,206.36,206.35,19.28092625]
[1755930757678,38.94,206.36,206.35,3.61453976]
[1755930758050,38.94,206.36,206.35,19.28092625]
[1755930758893,38.94,206.36,206.35,19.99998327]
[1755930759397,38.94,206.36,206.35,20.00038303]
[1755930759573,0.06,206.36,206.35,20.00038303]
[1755930759789,38.94,206.36,206.35,20.00038303]
[1755930760264,38.94,206.36,206.35,40.22719062]
[1755930761677,0.06,206.36,206.35,40.22719062]
[1755930762065,38.94,206.36,206.35,40.22719062]
[1755930763365,38.94,206.36,206.35,13.50719062]
[1755930763565,39.61,206.36,206.35,3.61399654]
[1755930763870,39.61,206.36,206.35,13.50719062]
[1755930764791,39.61,206.36,206.35,3.61399654]
[1755930765198,0.73,206.36,206.35,3.61399654]
[1755930765499,39.59,206.36,206.35,13.50719062]
[1755930767580,39.59,206.36,206.35,9.89319408]
[1755930767805,39.59,206.36,206.35,13.5108062]
[1755930767982,39.59,206.36,206.35,3.61761212]
[1755930768305,39.59,206.36,206.35,13.5108062]
[1755930768514,39.59,206.36,206.35,13.51085648]
[1755930770783,39.59,206.36,206.35,13.51092507]
[1755930773494,0.73,206.36,206.35,13.51092507]
[1755930773804,39.59,206.36,206.35,13.51092507]
[1755930774100,38.92,206.36,206.35,13.51092507]
[1755930775311,0.06,206.36,206.35,13.51092507]
[1755930775682,0.06,206.36,206.35,14.23092507]
[1755930775882,38.9,206.36,206.35,14.23092507]
[1755930776082,0.06,206.36,206.35,14.23092507]
[1755930776603,38.9,206.36,206.35,14.23092507]
[1755930776997,0.06,206.36,206.35,14.23061758]
[1755930777397,38.9,206.36,206.35,14.23061245]
[1755930777604,0.06,206.36,206.35,14.23061245]
[1755930777802,38.9,206.36,206.35,14.23061245]
[1755930778112,0.06,206.36,206.35,14.23061245]
[1755930778301,38.9,206.36,206.35,14.23061245]
[1755930779009,0.06,206.36,206.35,14.23061245]
[1755930779313,38.9,206.36,206.35,14.23061245]
[1755930779482,0.06,206.36,206.35,14.23061245]
[1755930779885,38.9,206.36,206.35,14.23061245]
[1755930780915,0.06,206.36,206.35,14.23061245]
[1755930781112,38.9,206.36,206.35,14.23061245]
[1755930781315,0.06,206.36,206.35,14.23061245]
[1755930782603,38.88,206.36,206.35,14.23061245]
[1755930783095,0.06,206.36,206.35,14.23061245]
[1755930783900,0.2,206.39,206.35,14.23061245]
[1755930784101,0.2,206.39,206.37,9.89319408]
[1755930784303,0.2,206.39,206.37,13.52739802]
[1755930784704,38.88,206.38,206.37,13.52739802]
[1755930784901,0.06,206.38,206.37,9.89319408]
[1755930785120,0.06,206.38,206.37,13.52720219]
[1755930785503,38.88,206.38,206.37,13.52720219]
[1755930785698,0.06,206.38,206.37,13.52720219]
[1755930785903,38.88,206.38,206.37,13.52720219]
[1755930787307,0.06,206.38,206.37,13.52720219]
[1755930787534,38.88,206.38,206.37,13.52720219]
[1755930787711,38.88,206.38,206.37,14.18720219]
[1755930789401,0.06,206.38,206.37,13.52720219]
[1755930789926,38.86,206.38,206.37,13.52720219]
[1755930790229,0.06,206.38,206.37,13.52720219]
[1755930790604,38.86,206.38,206.37,13.52720219]
[1755930791103,0.06,206.38,206.37,13.52720219]
[1755930791624,38.86,206.38,206.37,13.52720219]
[1755930791803,0.06,206.38,206.37,13.52720219]
[1755930792138,38.86,206.38,206.37,13.52720219]
[1755930794007,38.86,206.38,206.37,9.89319408]
[1755930794209,38.86,206.38,206.37,13.52439521]
[1755930794829,38.86,206.38,206.37,14.18439521]
[1755930795930,0.06,206.38,206.37,14.18439521]
[1755930796134,38.84,206.38,206.37,14.18439521]
[1755930796310,0.06,206.38,206.37,14.46871835]
[1755930796512,38.98,206.39,206.37,30.51094439]
[1755930796725,38.98,206.39,206.38,14.18439521]
[1755930797136,0.2,206.39,206.38,14.14059253]
[1755930797335,38.98,206.39,206.38,14.14059253]
[1755930797534,0.2,206.39,206.38,14.14059253]
[1755930798212,38.98,206.39,206.38,14.14059253]
[1755930798718,0.06,206.4,206.39,0.28432314]
[1755930798922,38.84,206.4,206.39,14.42491567]
[1755930799126,38.84,206.4,206.39,13.76491567]
[1755930799327,38.84,206.4,206.39,14.42491567]
[1755930801216,0.06,206.4,206.39,14.42491567]
[1755930801742,0.2,206.47,206.4,23.59559401]
[1755930802042,24.47882398,206.46,206.42,1.25e-06]
[1755930802229,24.47882398,206.46,206.45,1.25e-06]
[1755930803422,24.47882398,206.46,206.24,0.03]
[1755930803423,24.46266354,206.44,206.33,137.73325419]
[1755930803623,63.45935796,206.43,206.41,9.89319408]
[1755930803934,63.45935796,206.43,206.33,7.66253218]
[1755930803935,10.59319283,206.42,206.4,9.89319408]
[1755930804237,9.89319283,206.4,206.39,9.89319408]
[1755930804733,10.59319283,206.4,206.39,9.89319408]
[1755930805538,9.89319283,206.42,206.39,10.83751722]
[1755930805758,38.76,206.4,206.39,0.94432314]
[1755930806425,48.65319283,206.4,206.35,0.66]
[1755930806640,0.7,206.39,206.32,0.66]
[1755930806825,9.89319283,206.38,206.35,9.89319408]
[1755930807151,38.74,206.37,206.36,9.89319408]
[1755930808346,9.89319283,206.38,206.37,26.0]
[1755930808519,9.89319283,206.38,206.36,35.89319408]
[1755930808717,38.74,206.37,206.36,35.89319408]
[1755930809925,38.74,206.37,206.36,36.88751722]
[1755930810119,9.89319283,206.38,206.36,36.88751722]
[1755930810448,9.89319283,206.38,206.37,9.89319408]